[Event "Pobeskydi 2026"]
[Site "Frydek-Mistek, Czech Republic"]
[Date "2026.04.04"]
[Round "6.3"]
[White "Ocelak, David"]
[Black "Lichorad, Mateusz"]
[Result "1/2-1/2"]
[TimeControl "90 min+30s/move"]
[WhiteTitle "-"]
[BlackTitle "-"]
[WhiteFideId "23728795"]
[BlackFideId "21817693"]
[WhiteElo "2009"]
[BlackElo "2039"]

1. Nf3 {[%clk 01:30:49]} {[%emt 00:00:10]} Nf6 {[%clk 01:30:51]} {[%emt
00:00:08]} 2. b3 {[%clk 01:30:54]} {[%emt 00:00:26]} d5 {[%clk 01:30:01]}
{[%emt 00:01:20]} 3. Bb2 {[%clk 01:31:16]} {[%emt 00:00:08]} e6 {[%clk
01:30:16]} {[%emt 00:00:15]} 4. g3 {[%clk 01:31:04]} {[%emt 00:00:41]} Be7
{[%clk 01:30:22]} {[%emt 00:00:25]} 5. Bg2 {[%clk 01:31:26]} {[%emt 00:00:09]}
O-O {[%clk 01:30:34]} {[%emt 00:00:17]} 6. O-O {[%clk 01:31:45]} {[%emt
00:00:10]} b6 {[%clk 01:30:06]} {[%emt 00:00:59]} 7. d3 {[%clk 01:31:42]}
{[%emt 00:00:33]} Bb7 {[%clk 01:29:32]} {[%emt 00:01:05]} 8. Nbd2 {[%clk
01:31:37]} {[%emt 00:00:35]} c5 {[%clk 01:26:46]} {[%emt 00:03:16]} 9. Re1
{[%clk 01:29:57]} {[%emt 00:02:09]} Nc6 {[%clk 01:26:13]} {[%emt 00:01:03]} 10.
e4 {[%clk 01:27:31]} {[%emt 00:02:55]} d4 {[%clk 01:21:40]} {[%emt 00:05:03]}
11. a4 {[%clk 01:18:47]} {[%emt 00:09:14]} a6 {[%clk 01:15:18]} {[%emt
00:06:52]} 12. h4 {[%clk 01:15:11]} {[%emt 00:04:06]} b5 {[%clk 01:10:54]}
{[%emt 00:04:54]} 13. Nh2 {[%clk 01:11:12]} {[%emt 00:04:29]} e5 {[%clk
01:08:25]} {[%emt 00:03:00]} 14. h5 {[%clk 01:07:27]} {[%emt 00:04:14]} h6
{[%clk 01:08:32]} {[%emt 00:00:25]} 15. Bh3 {[%clk 01:06:30]} {[%emt 00:01:26]}
Ne8 {[%clk 01:02:29]} {[%emt 00:06:33]} 16. Ng4 {[%clk 00:57:00]} {[%emt
00:10:00]} Nd6 {[%clk 00:58:50]} {[%emt 00:04:09]} 17. Bc1 {[%clk 00:54:46]}
{[%emt 00:02:44]} Bg5 {[%clk 00:55:20]} {[%emt 00:04:00]} 18. Nf3 {[%clk
00:52:34]} {[%emt 00:02:42]} Bxc1 {[%clk 00:55:19]} {[%emt 00:00:32]} 19. Qxc1
{[%clk 00:52:21]} {[%emt 00:00:43]} Qe7 {[%clk 00:54:22]} {[%emt 00:01:27]} 20.
Nh4 {[%clk 00:51:18]} {[%emt 00:01:32]} bxa4 {[%clk 00:36:51]} {[%emt
00:18:01]} 21. Rxa4 {[%clk 00:36:35]} {[%emt 00:15:13]} Bc8 {[%clk 00:34:56]}
{[%emt 00:02:25]} 22. f3 {[%clk 00:36:35]} {[%emt 00:00:30]} Nb4 {[%clk
00:29:39]} {[%emt 00:05:48]} 23. Nf5 {[%clk 00:31:43]} {[%emt 00:05:21]} Nxf5
{[%clk 00:28:36]} {[%emt 00:01:34]} 24. exf5 {[%clk 00:32:05]} {[%emt
00:00:07]} f6 {[%clk 00:28:48]} {[%emt 00:00:18]} 25. Nf2 {[%clk 00:28:48]}
{[%emt 00:03:46]} Qc7 {[%clk 00:25:00]} {[%emt 00:04:19]} 26. c3 {[%clk
00:24:39]} {[%emt 00:04:39]} dxc3 {[%clk 00:23:35]} {[%emt 00:01:55]} 27. Qxc3
{[%clk 00:24:47]} {[%emt 00:00:21]} Qb6 {[%clk 00:19:25]} {[%emt 00:04:41]} 28.
Qc4+ {[%clk 00:23:50]} {[%emt 00:01:27]} Kh8 {[%clk 00:18:52]} {[%emt
00:01:03]} 29. Raa1 {[%clk 00:18:09]} {[%emt 00:06:11]} Bd7 {[%clk 00:17:52]}
{[%emt 00:01:31]} 30. Rac1 {[%clk 00:17:18]} {[%emt 00:01:21]} Rac8 {[%clk
00:16:39]} {[%emt 00:01:42]} 31. f4 {[%clk 00:14:40]} {[%emt 00:03:08]} exf4
{[%clk 00:14:25]} {[%emt 00:02:44]} 32. Qxf4 {[%clk 00:14:55]} {[%emt
00:00:14]} Rfe8 {[%emt 00:05:06]} 1/2-1/2

[Event "Pobeskydi 2026"]
[Site "Frydek-Mistek, Czech Republic"]
[Date "2026.04.04"]
[Round "6.4"]
[White "Sigut, Ondrej"]
[Black "Zeman, Daniel Nikolas"]
[Result "1/2-1/2"]
[TimeControl "90 min+30s/move"]
[WhiteTitle "-"]
[BlackTitle "-"]
[WhiteFideId "23712813"]
[BlackFideId "23717130"]
[WhiteElo "2016"]
[BlackElo "1957"]

1. e4 {[%clk 01:30:58]} {[%emt 00:00:01]} c5 {[%clk 01:30:54]} {[%emt
00:00:06]} 2. Nf3 {[%clk 01:31:22]} {[%emt 00:00:06]} Nc6 {[%clk 01:31:20]}
{[%emt 00:00:04]} 3. Bb5 {[%clk 01:31:46]} {[%emt 00:00:07]} g6 {[%clk
01:31:38]} {[%emt 00:00:11]} 4. O-O {[%clk 01:32:04]} {[%emt 00:00:11]} Bg7
{[%clk 01:31:58]} {[%emt 00:00:10]} 5. c3 {[%clk 01:31:56]} {[%emt 00:00:39]}
e5 {[%clk 01:32:14]} {[%emt 00:00:13]} 6. d3 {[%clk 01:31:34]} {[%emt
00:00:53]} Nge7 {[%clk 01:31:55]} {[%emt 00:00:49]} 7. Be3 {[%clk 01:30:57]}
{[%emt 00:01:07]} d6 {[%clk 01:32:12]} {[%emt 00:00:13]} 8. d4 {[%clk
01:29:21]} {[%emt 00:02:06]} cxd4 {[%clk 01:31:47]} {[%emt 00:00:55]} 9. cxd4
{[%clk 01:29:30]} {[%emt 00:00:21]} O-O {[%clk 01:31:09]} {[%emt 00:01:07]} 10.
dxe5 {[%clk 01:22:14]} {[%emt 00:07:47]} dxe5 {[%clk 01:30:52]} {[%emt
00:00:46]} 11. Qe2 {[%clk 01:16:00]} {[%emt 00:06:44]} Bg4 {[%clk 01:30:09]}
{[%emt 00:01:12]} 12. Rd1 {[%clk 01:09:45]} {[%emt 00:06:46]} Nd4 {[%clk
01:28:46]} {[%emt 00:01:53]} 13. Bxd4 {[%clk 01:10:00]} {[%emt 00:00:15]} exd4
{[%clk 01:29:05]} {[%emt 00:00:11]} 14. Nbd2 {[%clk 01:07:57]} {[%emt
00:02:34]} a6 {[%clk 01:23:55]} {[%emt 00:05:40]} 15. Bd3 {[%clk 01:07:17]}
{[%emt 00:01:10]} Nc6 {[%clk 01:21:52]} {[%emt 00:02:33]} 16. h3 {[%clk
01:05:49]} {[%emt 00:01:58]} Be6 {[%clk 01:20:40]} {[%emt 00:01:41]} 17. Bc4
{[%clk 00:56:56]} {[%emt 00:09:24]} Re8 {[%clk 01:18:39]} {[%emt 00:02:30]} 18.
Bxe6 {[%clk 00:49:51]} {[%emt 00:07:36]} Rxe6 {[%clk 01:18:50]} {[%emt
00:00:18]} 19. Nb3 {[%clk 00:48:20]} {[%emt 00:02:02]} Qe7 {[%clk 01:10:06]}
{[%emt 00:09:13]} 20. Re1 {[%clk 00:39:54]} {[%emt 00:08:56]} Rd8 {[%clk
01:05:51]} {[%emt 00:04:44]} 21. Rad1 {[%clk 00:37:29]} {[%emt 00:02:57]} f5
{[%clk 00:55:05]} {[%emt 00:11:15]} 22. Qc4 {[%clk 00:31:02]} {[%emt 00:06:57]}
b5 {[%clk 00:54:29]} {[%emt 00:01:06]} 23. Qc5 {[%clk 00:30:54]} {[%emt
00:00:38]} fxe4 {[%clk 00:43:37]} {[%emt 00:11:23]} 24. Ng5 {[%clk 00:30:10]}
{[%emt 00:01:13]} Qxc5 {[%clk 00:43:27]} {[%emt 00:00:40]} 25. Nxc5 {[%clk
00:30:36]} {[%emt 00:00:04]} Re5 {[%clk 00:43:43]} {[%emt 00:00:15]} 26. Ngxe4
{[%clk 00:30:50]} {[%emt 00:00:16]} Nb4 {[%clk 00:36:21]} {[%emt 00:07:52]} 27.
a3 {[%clk 00:23:33]} {[%emt 00:07:47]} Nc6 {[%clk 00:33:19]} {[%emt 00:03:31]}
28. f3 {[%clk 00:21:56]} {[%emt 00:02:07]} a5 {[%clk 00:31:22]} {[%emt
00:02:27]} 29. Nd3 {[%clk 00:20:24]} {[%emt 00:02:02]} Ree8 {[%clk 00:30:26]}
{[%emt 00:01:26]} 30. Kf2 {[%clk 00:18:46]} {[%emt 00:02:09]} Ne5 {[%clk
00:27:31]} {[%emt 00:03:24]} 1/2-1/2

[Event "Pobeskydi 2026"]
[Site "Frydek-Mistek, Czech Republic"]
[Date "2026.04.04"]
[Round "6.5"]
[White "Haasova, Timea"]
[Black "Szumiec, Jan"]
[Result "0-1"]
[TimeControl "90 min+30s/move"]
[WhiteTitle "-"]
[BlackTitle "-"]
[WhiteFideId "14960109"]
[BlackFideId "41815661"]
[WhiteElo "2012"]
[BlackElo "1826"]

1. e4 {[%clk 01:30:56]} {[%emt 00:00:03]} c6 {[%clk 01:30:52]} {[%emt
00:00:08]} 2. d4 {[%clk 01:31:17]} {[%emt 00:00:09]} d5 {[%clk 01:31:16]}
{[%emt 00:00:06]} 3. e5 {[%clk 01:31:33]} {[%emt 00:00:14]} Bf5 {[%clk
01:31:40]} {[%emt 00:00:06]} 4. h4 {[%clk 01:30:10]} {[%emt 00:01:54]} a6
{[%clk 01:32:06]} {[%emt 00:00:06]} 5. g4 {[%clk 01:24:08]} {[%emt 00:06:31]}
Bd7 {[%clk 01:32:34]} {[%emt 00:00:02]} 6. Bd3 {[%clk 01:15:01]} {[%emt
00:09:36]} e6 {[%clk 01:30:18]} {[%emt 00:02:47]} 7. Nf3 {[%clk 01:11:16]}
{[%emt 00:04:14]} c5 {[%clk 01:28:34]} {[%emt 00:02:15]} 8. c3 {[%clk
01:08:41]} {[%emt 00:03:05]} Nc6 {[%clk 01:26:08]} {[%emt 00:02:56]} 9. a3
{[%clk 01:02:01]} {[%emt 00:07:11]} Qb6 {[%clk 01:23:47]} {[%emt 00:02:47]} 10.
Bc2 {[%clk 00:56:17]} {[%emt 00:06:17]} Rc8 {[%clk 01:21:33]} {[%emt 00:02:43]}
11. O-O {[%clk 00:54:30]} {[%emt 00:02:18]} Be7 {[%clk 01:10:55]} {[%emt
00:11:07]} 12. b4 {[%clk 00:49:27]} {[%emt 00:05:35]} cxd4 {[%clk 01:10:07]}
{[%emt 00:01:17]} 13. cxd4 {[%clk 00:49:31]} {[%emt 00:00:27]} a5 {[%clk
01:05:33]} {[%emt 00:05:05]} 14. bxa5 {[%clk 00:47:55]} {[%emt 00:02:06]} Nxa5
{[%clk 01:04:51]} {[%emt 00:01:12]} 15. Ba4 {[%clk 00:47:05]} {[%emt 00:01:19]}
Nh6 {[%clk 00:46:53]} {[%emt 00:18:28]} 16. g5 {[%clk 00:26:01]} {[%emt
00:21:34]} Nf5 {[%clk 00:46:45]} {[%emt 00:00:38]} 17. Bc2 {[%clk 00:23:35]}
{[%emt 00:02:57]} Rxc2 {[%clk 00:42:56]} {[%emt 00:04:19]} 18. Qxc2 {[%clk
00:23:58]} {[%emt 00:00:07]} Nxd4 {[%clk 00:43:00]} {[%emt 00:00:26]} 19. Nxd4
{[%clk 00:19:16]} {[%emt 00:05:11]} Qxd4 {[%clk 00:43:17]} {[%emt 00:00:13]} 20.
Qc3 {[%clk 00:18:43]} {[%emt 00:01:03]} Qg4+ {[%clk 00:41:39]} {[%emt
00:02:08]} 21. Qg3 {[%clk 00:17:30]} {[%emt 00:01:43]} Qxg3+ {[%clk 00:41:46]}
{[%emt 00:00:23]} 22. fxg3 {[%clk 00:17:55]} {[%emt 00:00:06]} Bc5+ {[%clk
00:41:10]} {[%emt 00:01:05]} 23. Kh2 {[%clk 00:17:32]} {[%emt 00:00:52]} Bd4
{[%clk 00:40:21]} {[%emt 00:01:20]} 24. Ra2 {[%clk 00:17:41]} {[%emt 00:00:21]}
Bxe5 {[%clk 00:39:03]} {[%emt 00:01:49]} 25. Bd2 {[%clk 00:16:36]} {[%emt
00:01:35]} Nc4 {[%clk 00:38:34]} {[%emt 00:00:58]} 26. Bb4 {[%clk 00:16:27]}
{[%emt 00:00:40]} f6 {[%clk 00:37:52]} {[%emt 00:01:12]} 27. Nd2 {[%clk
00:13:45]} {[%emt 00:03:13]} Bb5 {[%clk 00:35:17]} {[%emt 00:03:00]} 28. Re1
{[%clk 00:12:57]} {[%emt 00:01:22]} Nxd2 {[%clk 00:31:39]} {[%emt 00:04:08]} 29.
Bxd2 {[%clk 00:12:51]} {[%emt 00:00:35]} Bc4 {[%clk 00:30:38]} {[%emt
00:01:32]} 30. Rc2 {[%clk 00:13:11]} {[%emt 00:00:11]} Kf7 {[%clk 00:30:24]}
{[%emt 00:00:43]} 31. Bc3 {[%clk 00:11:40]} {[%emt 00:02:01]} Bxc3 {[%clk
00:29:24]} {[%emt 00:01:30]} 32. Rxc3 {[%clk 00:12:06]} {[%emt 00:00:04]} b5
{[%clk 00:27:07]} {[%emt 00:02:48]} 33. gxf6 {[%clk 00:11:55]} {[%emt
00:00:40]} gxf6 {[%clk 00:26:39]} {[%emt 00:00:58]} 34. Kg2 {[%clk 00:11:06]}
{[%emt 00:01:19]} e5 {[%clk 00:26:45]} {[%emt 00:00:25]} 35. Kf3 {[%clk
00:10:38]} {[%emt 00:00:58]} Ra8 {[%clk 00:25:39]} {[%emt 00:01:36]} 36. Rb1
{[%clk 00:10:01]} {[%emt 00:01:07]} d4 {[%clk 00:25:27]} {[%emt 00:00:43]} 37.
Rxc4 {[%clk 00:09:28]} {[%emt 00:01:03]} Rxa3+ {[%clk 00:25:24]} {[%emt
00:00:32]} 38. Kg4 {[%clk 00:09:53]} {[%emt 00:00:05]} bxc4 {[%clk 00:25:43]}
{[%emt 00:00:11]} 39. Rb7+ {[%clk 00:10:14]} {[%emt 00:00:09]} Ke6 {[%clk
00:25:14]} {[%emt 00:00:59]} 40. Rxh7 {[%clk 00:09:52]} {[%emt 00:00:52]} f5+
{[%clk 00:25:10]} {[%emt 00:00:35]} 41. Kh3 {[%clk 00:09:10]} {[%emt 00:01:11]}
d3 {[%clk 00:25:16]} {[%emt 00:00:24]} 42. Rh6+ {[%clk 00:09:30]} {[%emt
00:00:10]} Kd5 {[%clk 00:25:32]} {[%emt 00:00:12]} 43. Rh8 {[%clk 00:09:55]}
{[%emt 00:00:07]} c3 {[%clk 00:25:27]} {[%emt 00:00:35]} 44. h5 {[%clk
00:09:54]} {[%emt 00:00:31]} c2 {[%clk 00:25:45]} {[%emt 00:00:12]} 45. Rc8
{[%clk 00:10:11]} {[%emt 00:00:13]} d2 {[%clk 00:25:57]} {[%emt 00:00:18]} 0-1

[Event "Pobeskydi 2026"]
[Site "Frydek-Mistek, Czech Republic"]
[Date "2026.04.04"]
[Round "6.6"]
[White "Chubar, Vladimir"]
[Black "Durana, Jonas"]
[Result "0-1"]
[TimeControl "90 min+30s/move"]
[WhiteTitle "-"]
[BlackTitle "-"]
[WhiteFideId "14101491"]
[BlackFideId "73619663"]
[WhiteElo "1885"]
[BlackElo "2183"]

1. d4 {[%clk 01:28:52]} {[%emt 00:00:12]} d5 {[%clk 01:30:54]} {[%emt
00:00:06]} 2. Bf4 {[%clk 01:29:06]} {[%emt 00:00:16]} Nf6 {[%clk 01:31:17]}
{[%emt 00:00:08]} 3. Nc3 {[%clk 01:29:22]} {[%emt 00:00:13]} e6 {[%clk
01:31:42]} {[%emt 00:00:05]} 4. e3 {[%clk 01:26:49]} {[%emt 00:03:04]} Bb4
{[%clk 01:31:37]} {[%emt 00:00:35]} 5. Bd3 {[%clk 01:26:11]} {[%emt 00:01:07]}
c5 {[%clk 01:31:57]} {[%emt 00:00:10]} 6. dxc5 {[%clk 01:25:42]} {[%emt
00:00:59]} Nbd7 {[%clk 01:32:12]} {[%emt 00:00:15]} 7. Nge2 {[%clk 01:22:33]}
{[%emt 00:03:39]} a6 {[%clk 01:32:37]} {[%emt 00:00:05]} 8. a3 {[%clk
01:21:13]} {[%emt 00:01:50]} Bxc5 {[%clk 01:32:47]} {[%emt 00:00:20]} 9. Bg5
{[%clk 01:21:12]} {[%emt 00:00:30]} O-O {[%clk 01:30:12]} {[%emt 00:03:05]} 10.
O-O {[%clk 01:18:51]} {[%emt 00:02:52]} Qc7 {[%clk 01:29:14]} {[%emt 00:01:24]}
11. Ng3 {[%clk 01:11:35]} {[%emt 00:07:49]} h6 {[%clk 01:28:41]} {[%emt
00:01:04]} 12. Bxf6 {[%clk 01:11:25]} {[%emt 00:00:40]} Nxf6 {[%clk 01:28:41]}
{[%emt 00:00:30]} 13. Nh5 {[%clk 01:11:11]} {[%emt 00:00:45]} Qe5 {[%clk
01:24:09]} {[%emt 00:05:00]} 14. Nxf6+ {[%clk 01:09:20]} {[%emt 00:02:23]} Qxf6
{[%clk 01:22:26]} {[%emt 00:02:12]} 15. Qh5 {[%clk 01:09:18]} {[%emt 00:00:31]}
Qg5 {[%clk 01:17:11]} {[%emt 00:05:46]} 16. Qf3 {[%clk 00:57:45]} {[%emt
00:12:02]} Bd7 {[%clk 01:11:49]} {[%emt 00:05:51]} 17. e4 {[%clk 00:54:53]}
{[%emt 00:03:24]} d4 {[%clk 01:06:09]} {[%emt 00:06:10]} 18. Ne2 {[%clk
00:52:20]} {[%emt 00:03:02]} e5 {[%clk 01:05:19]} {[%emt 00:01:20]} 19. Qg3
{[%clk 00:50:21]} {[%emt 00:02:29]} Rae8 {[%clk 01:01:08]} {[%emt 00:04:42]} 20.
f4 {[%clk 00:48:33]} {[%emt 00:02:19]} exf4 {[%clk 00:59:47]} {[%emt 00:01:52]}
21. Qxf4 {[%clk 00:46:09]} {[%emt 00:02:52]} Qxf4 {[%clk 00:57:05]} {[%emt
00:03:12]} 22. Rxf4 {[%clk 00:45:55]} {[%emt 00:00:44]} f5 {[%clk 00:56:08]}
{[%emt 00:01:28]} 23. Ng3 {[%clk 00:43:05]} {[%emt 00:03:19]} Bd6 {[%clk
00:33:42]} {[%emt 00:22:56]} 24. Rh4 {[%clk 00:39:28]} {[%emt 00:04:07]} Be7
{[%clk 00:32:52]} {[%emt 00:01:20]} 25. Rf4 {[%clk 00:35:30]} {[%emt 00:04:28]}
Bg5 {[%clk 00:31:30]} {[%emt 00:01:52]} 26. Rff1 {[%clk 00:34:55]} {[%emt
00:01:04]} fxe4 {[%clk 00:29:12]} {[%emt 00:02:50]} 27. Rxf8+ {[%clk 00:34:05]}
{[%emt 00:01:19]} Rxf8 {[%clk 00:29:25]} {[%emt 00:00:17]} 28. Nxe4 {[%clk
00:31:23]} {[%emt 00:03:12]} Be3+ {[%clk 00:29:39]} {[%emt 00:00:15]} 29. Kh1
{[%clk 00:31:46]} {[%emt 00:00:09]} Bc6 {[%clk 00:29:38]} {[%emt 00:00:30]} 30.
h3 {[%clk 00:29:20]} {[%emt 00:02:57]} Rf4 {[%clk 00:26:38]} {[%emt 00:03:29]}
31. Ng3 {[%clk 00:23:42]} {[%emt 00:06:09]} Kf7 {[%clk 00:23:49]} {[%emt
00:03:19]} 32. Re1 {[%clk 00:19:33]} {[%emt 00:04:39]} Bf2 {[%clk 00:22:38]}
{[%emt 00:01:40]} 33. Nh5 {[%clk 00:19:40]} {[%emt 00:00:24]} Rh4 {[%clk
00:22:18]} {[%emt 00:00:50]} 34. Rf1 {[%clk 00:19:40]} {[%emt 00:00:30]} Rxh3#
{[%clk 00:22:43]} {[%emt 00:00:05]} 0-1

[Event "Pobeskydi 2026"]
[Site "Frydek-Mistek, Czech Republic"]
[Date "2026.04.04"]
[Round "6.7"]
[White "Boff, Ondrej"]
[Black "Brousek, Jiri"]
[Result "1-0"]
[TimeControl "90 min+30s/move"]
[WhiteTitle "-"]
[BlackTitle "-"]
[WhiteFideId "23733950"]
[BlackFideId "314021"]
[WhiteElo "2101"]
[BlackElo "1915"]

1. e4 {[%clk 01:30:52]} {[%emt 00:00:07]} e6 {[%clk 01:30:44]} {[%emt
00:00:16]} 2. d3 {[%clk 01:31:01]} {[%emt 00:00:20]} d5 {[%clk 01:31:06]}
{[%emt 00:00:09]} 3. Nd2 {[%clk 01:31:14]} {[%emt 00:00:17]} Nf6 {[%clk
01:31:19]} {[%emt 00:00:16]} 4. Ngf3 {[%clk 01:31:18]} {[%emt 00:00:27]} c5
{[%clk 01:31:24]} {[%emt 00:00:24]} 5. g3 {[%clk 01:31:37]} {[%emt 00:00:11]}
Nc6 {[%clk 01:31:22]} {[%emt 00:00:33]} 6. Bg2 {[%clk 01:31:23]} {[%emt
00:00:44]} dxe4 {[%clk 01:31:22]} {[%emt 00:00:29]} 7. dxe4 {[%clk 01:30:57]}
{[%emt 00:00:57]} Be7 {[%clk 01:31:20]} {[%emt 00:00:32]} 8. O-O {[%clk
01:29:28]} {[%emt 00:01:59]} O-O {[%clk 01:30:24]} {[%emt 00:01:26]} 9. c3
{[%clk 01:26:57]} {[%emt 00:03:01]} Qc7 {[%clk 01:29:10]} {[%emt 00:01:43]} 10.
Qc2 {[%clk 01:25:58]} {[%emt 00:01:30]} Rd8 {[%clk 01:27:50]} {[%emt 00:01:49]}
11. Nb3 {[%clk 01:17:57]} {[%emt 00:08:31]} h6 {[%clk 01:22:25]} {[%emt
00:05:54]} 12. Bf4 {[%clk 01:16:56]} {[%emt 00:01:31]} e5 {[%clk 01:22:02]}
{[%emt 00:00:54]} 13. Be3 {[%clk 01:16:55]} {[%emt 00:00:31]} b6 {[%clk
01:22:15]} {[%emt 00:00:17]} 14. h3 {[%emt 00:05:55]} c4 {[%clk 01:19:04]}
{[%emt 00:03:33]} 15. Nbd2 {[%clk 01:10:55]} {[%emt 00:01:13]} Be6 {[%clk
01:19:01]} {[%emt 00:00:33]} 16. Kh2 {[%clk 01:06:28]} {[%emt 00:04:57]} Nd7
{[%clk 01:18:04]} {[%emt 00:01:26]} 17. Ne1 {[%clk 01:02:45]} {[%emt 00:04:13]}
Bc5 {[%emt 00:07:45]} 18. Bxc5 {[%clk 01:02:14]} {[%emt 00:00:06]} Nxc5 {[%emt
00:03:30]} 19. Rd1 {[%clk 00:57:58]} {[%emt 00:07:27]} Nd3 20. Nxd3 {[%clk
00:54:40]} {[%emt 00:02:22]} Rxd3 21. b3 {[%emt 00:04:09]} b5 {[%clk 00:59:37]}
{[%emt 00:05:44]} 22. bxc4 {[%clk 00:50:01]} {[%emt 00:05:12]} bxc4 23. Rfe1
{[%clk 00:47:44]} {[%emt 00:01:58]} Rad8 24. Bf1 {[%clk 00:45:17]} {[%emt
00:06:28]} R3d6 25. Nxc4 {[%clk 00:44:08]} {[%emt 00:07:43]} Rxd1 {[%clk
00:51:56]} 26. Rxd1 {[%clk 00:44:08]} Rxd1 {[%clk 00:51:56]} {[%emt 00:01:53]}
27. Qxd1 {[%clk 00:44:35]} Bxc4 {[%clk 00:52:06]} {[%emt 00:00:22]} 28. Bxc4
{[%clk 00:44:51]} {[%emt 00:00:34]} Na5 29. Bd5 {[%clk 00:44:55]} {[%emt
00:02:06]} Qxc3 30. Qa4 {[%emt 00:09:52]} Qc7 {[%emt 00:00:48]} 31. Qe8+ {[%clk
00:44:58]} {[%emt 00:00:08]} Kh7 32. Bxf7 {[%emt 00:00:27]} 1-0